[Event "Titled Tuesday Blitz February 28 Early 2023"]
[White "Gunduz, Umut Erdem"]
[Black "Zemlyanskii, Ivan"]
[WhiteFideId "6381383"]
[BlackFideId "24249971"]
[WhiteElo "2182"]
[BlackElo "2233"]
[Result "1-0"]
[Round "07"]
[TimeControl "180+2"]
[Date "2023.02.28"]
[WhiteClock "0:01:33"]
[BlackClock "0:00:03"]

1. e4 {[%clk 0:03:00]}  Nc6 {[%clk 0:02:59]} 2. Nf3 {[%clk 0:03:00]}  d5 {[%clk 0:03:00]} 3. exd5 {[%clk 0:02:57]}  Qxd5 {[%clk 0:02:58]} 4. Nc3 {[%clk 0:02:58]}  Qd6 {[%clk 0:02:58]} 5. g3 {[%clk 0:02:50]}  Bg4 {[%clk 0:02:37]} 6. Bg2 {[%clk 0:02:50]}  Qe6+ {[%clk 0:02:29]} 7. Ne2 {[%clk 0:02:43]}  Nf6 {[%clk 0:02:23]} 8. O-O {[%clk 0:02:43]}  Qd7 {[%clk 0:02:22]} 9. d3 {[%clk 0:02:38]}  e6 {[%clk 0:02:22]} 10. a3 {[%clk 0:02:36]}  Be7 {[%clk 0:02:17]} 11. b4 {[%clk 0:02:36]}  a6 {[%clk 0:02:10]} 12. Bb2 {[%clk 0:02:36]}  O-O {[%clk 0:02:10]} 13. h3 {[%clk 0:02:35]}  Bh5 {[%clk 0:02:03]} 14. Nf4 {[%clk 0:02:35]}  Bg6 {[%clk 0:01:58]} 15. Nxg6 {[%clk 0:02:35]}  hxg6 {[%clk 0:01:59]} 16. Re1 {[%clk 0:02:30]}  Rfd8 {[%clk 0:01:58]} 17. Qe2 {[%clk 0:02:27]}  Nd5 {[%clk 0:01:52]} 18. c4 {[%clk 0:02:18]}  Nb6 {[%clk 0:01:44]} 19. Rad1 {[%clk 0:02:08]}  Na4 {[%clk 0:01:13]} 20. Ba1 {[%clk 0:02:07]}  Bf6 {[%clk 0:00:59]} 21. d4 {[%clk 0:02:07]}  Ne7 {[%clk 0:00:51]} 22. Ne5 {[%clk 0:02:05]}  Bxe5 {[%clk 0:00:43]} 23. dxe5 {[%clk 0:02:05]}  Qe8 {[%clk 0:00:39]} 24. Bxb7 {[%clk 0:02:04]}  Ra7 {[%clk 0:00:33]} 25. Be4 {[%clk 0:01:57]}  Nb6 {[%clk 0:00:33]} 26. Bd4 {[%clk 0:01:53]}  Nf5 {[%clk 0:00:24]} 27. Bc5 {[%clk 0:01:52]}  a5 {[%clk 0:00:13]} 28. b5 {[%clk 0:01:43]}  a4 {[%clk 0:00:13]} 29. Rxd8 {[%clk 0:01:43]}  Qxd8 {[%clk 0:00:14]} 30. Rd1 {[%clk 0:01:44]}  Qc8 {[%clk 0:00:10]} 31. Qd3 {[%clk 0:01:39]}  Kh7 {[%clk 0:00:09]} 32. g4 {[%clk 0:01:32]}  Nh4 {[%clk 0:00:06]} 33. Qg3 {[%clk 0:01:33]}  Kg8 {[%clk 0:00:03]} 34. Qxh4 {[%clk 0:01:33]} 1-0


[Site "https://www.chess.com"]

[Event "Titled Tuesday Blitz February 28 Early 2023"]
[White "Williams, Simon K"]
[Black "Molina, Roberto Junio Brito"]
[WhiteFideId "404454"]
[BlackFideId "2109450"]
[WhiteElo "2468"]
[BlackElo "2376"]
[Result "0-1"]
[Round "07"]
[TimeControl "180+2"]
[Date "2023.02.28"]
[WhiteClock "0:00:06"]
[BlackClock "0:00:05"]

1. d4 {[%clk 0:03:00]}  d5 {[%clk 0:02:59]} 2. c4 {[%clk 0:02:59]}  c6 {[%clk 0:02:58]} 3. Nc3 {[%clk 0:02:58]}  Nf6 {[%clk 0:02:58]} 4. Nf3 {[%clk 0:02:58]}  dxc4 {[%clk 0:02:58]} 5. e4 {[%clk 0:02:57]}  b5 {[%clk 0:02:57]} 6. e5 {[%clk 0:02:54]}  Nd5 {[%clk 0:02:57]} 7. a4 {[%clk 0:02:49]}  e6 {[%clk 0:02:56]} 8. Ng5 {[%clk 0:02:49]}  Bb4 {[%clk 0:02:40]} 9. Bd2 {[%clk 0:02:39]}  Nxc3 {[%clk 0:02:28]} 10. bxc3 {[%clk 0:02:39]}  Bxc3 {[%clk 0:02:27]} 11. Bxc3 {[%clk 0:02:39]}  Qxg5 {[%clk 0:02:27]} 12. axb5 {[%clk 0:02:40]}  O-O {[%clk 0:02:18]} 13. Be2 {[%clk 0:02:23]}  Bb7 {[%clk 0:02:04]} 14. Bf3 {[%clk 0:02:18]}  Qe7 {[%clk 0:02:02]} 15. Qb1 {[%clk 0:02:12]}  Rc8 {[%clk 0:01:56]} 16. Bb4 {[%clk 0:01:45]}  Qd7 {[%clk 0:01:39]} 17. Qe4 {[%clk 0:01:24]}  Rc7 {[%clk 0:01:38]} 18. Qg4 {[%clk 0:00:48]}  cxb5 {[%clk 0:01:34]} 19. Bd6 {[%clk 0:00:46]}  Rc8 {[%clk 0:01:25]} 20. h4 {[%clk 0:00:45]}  Bxf3 {[%clk 0:01:22]} 21. gxf3 {[%clk 0:00:44]}  Nc6 {[%clk 0:01:05]} 22. Rg1 {[%clk 0:00:44]}  g6 {[%clk 0:01:05]} 23. h5 {[%clk 0:00:38]}  Ne7 {[%clk 0:00:58]} 24. hxg6 {[%clk 0:00:24]}  fxg6 {[%clk 0:00:57]} 25. Ke2 {[%clk 0:00:16]}  Nf5 {[%clk 0:00:57]} 26. Rh1 {[%clk 0:00:13]}  a5 {[%clk 0:00:40]} 27. Rag1 {[%clk 0:00:13]}  Ra7 {[%clk 0:00:40]} 28. Qf4 {[%clk 0:00:06]}  Qc6 {[%clk 0:00:31]} 29. Qh2 {[%clk 0:00:05]}  Nxd4+ {[%clk 0:00:22]} 30. Kf1 {[%clk 0:00:05]}  Qe8 {[%clk 0:00:18]} 31. Qh6 {[%clk 0:00:04]}  Nf5 {[%clk 0:00:16]} 32. Qg5 {[%clk 0:00:04]}  Rg7 {[%clk 0:00:12]} 33. Rg2 {[%clk 0:00:03]}  c3 {[%clk 0:00:12]} 34. Ke2 {[%clk 0:00:03]}  b4 {[%clk 0:00:11]} 35. Rgh2 {[%clk 0:00:02]}  Qb5+ {[%clk 0:00:11]} 36. Ke1 {[%clk 0:00:02]}  Nxd6 {[%clk 0:00:11]} 37. Rxh7 {[%clk 0:00:02]}  Ne8 {[%clk 0:00:05]} 38. Rh8+ {[%clk 0:00:02]}  Kf7 {[%clk 0:00:05]} 39. Qf4+ {[%clk 0:00:02]}  Ke7 {[%clk 0:00:06]} 40. Qf8+ {[%clk 0:00:03]}  Kd7 {[%clk 0:00:06]} 41. R8h7 {[%clk 0:00:03]}  Kc7 {[%clk 0:00:03]} 42. Rxg7+ {[%clk 0:00:03]}  Nxg7 {[%clk 0:00:04]} 43. Qxg7+ {[%clk 0:00:04]}  Kb6 {[%clk 0:00:05]} 44. Rh7 {[%clk 0:00:05]}  Qc6 {[%clk 0:00:02]} 45. Qa7+ {[%clk 0:00:05]}  Kb5 {[%clk 0:00:03]} 46. Rb7+ {[%clk 0:00:05]}  Ka4 {[%clk 0:00:03]} 47. Rb6 {[%clk 0:00:05]}  Qc5 {[%clk 0:00:04]} 48. Qa6 {[%clk 0:00:05]}  c2 {[%clk 0:00:04]} 49. Kf1 {[%clk 0:00:05]}  c1=Q+ {[%clk 0:00:05]} 50. Kg2 {[%clk 0:00:06]}  Qg5+ {[%clk 0:00:05]} 0-1


[Site "https://www.chess.com"]

[Event "Titled Tuesday Blitz February 28 Early 2023"]
[White "Ilinca Ilinca, Felix Antonio"]
[Black "Harsh Suresh"]
[WhiteFideId "54764998"]
[BlackFideId "45018464"]
[WhiteElo "2031"]
[BlackElo "2227"]
[Result "0-1"]
[Round "07"]
[TimeControl "180+2"]
[Date "2023.02.28"]
[WhiteClock "0:00:18"]
[BlackClock "0:00:06"]

1. e4 {[%clk 0:03:00]}  c5 {[%clk 0:02:58]} 2. Nf3 {[%clk 0:03:00]}  g6 {[%clk 0:02:57]} 3. b4 {[%clk 0:02:45]}  Bg7 {[%clk 0:02:55]} 4. c3 {[%clk 0:02:43]}  cxb4 {[%clk 0:02:54]} 5. d4 {[%clk 0:02:42]}  bxc3 {[%clk 0:02:53]} 6. Nxc3 {[%clk 0:02:40]}  Nc6 {[%clk 0:02:50]} 7. Be2 {[%clk 0:02:35]}  d6 {[%clk 0:02:48]} 8. O-O {[%clk 0:02:33]}  Nf6 {[%clk 0:02:44]} 9. Rb1 {[%clk 0:02:32]}  O-O {[%clk 0:02:39]} 10. Be3 {[%clk 0:02:29]}  b6 {[%clk 0:02:37]} 11. d5 {[%clk 0:02:27]}  Na5 {[%clk 0:02:36]} 12. Nd4 {[%clk 0:02:26]}  Bb7 {[%clk 0:02:32]} 13. Qd2 {[%clk 0:02:18]}  Rc8 {[%clk 0:02:27]} 14. f3 {[%clk 0:02:14]}  Nd7 {[%clk 0:02:24]} 15. Bf2 {[%clk 0:02:08]}  a6 {[%clk 0:02:16]} 16. a4 {[%clk 0:02:04]}  Nc4 {[%clk 0:02:07]} 17. Qa2 {[%clk 0:01:59]}  Ne3 {[%clk 0:01:54]} 18. Bxe3 {[%clk 0:01:52]}  Rxc3 {[%clk 0:01:54]} 19. Bf2 {[%clk 0:01:51]}  Qc7 {[%clk 0:01:51]} 20. Rfd1 {[%clk 0:01:47]}  Rc8 {[%clk 0:01:49]} 21. Bf1 {[%clk 0:01:41]}  Bf6 {[%clk 0:01:20]} 22. Be1 {[%clk 0:01:38]}  Bxd4+ {[%clk 0:01:07]} 23. Rxd4 {[%clk 0:01:37]}  Rc1 {[%clk 0:01:08]} 24. Rd1 {[%clk 0:01:31]}  Rxd1 {[%clk 0:01:06]} 25. Rxd1 {[%clk 0:01:30]}  Qc2 {[%clk 0:00:57]} 26. Qxc2 {[%clk 0:01:24]}  Rxc2 {[%clk 0:00:55]} 27. Bf2 {[%clk 0:01:22]}  Rb2 {[%clk 0:00:32]} 28. Rc1 {[%clk 0:01:19]}  Nc5 {[%clk 0:00:33]} 29. a5 {[%clk 0:01:15]}  bxa5 {[%clk 0:00:29]} 30. Bxc5 {[%clk 0:01:15]}  dxc5 {[%clk 0:00:29]} 31. Rxc5 {[%clk 0:01:16]}  a4 {[%clk 0:00:28]} 32. Ra5 {[%clk 0:01:13]}  Rb4 {[%clk 0:00:27]} 33. Kf2 {[%clk 0:01:10]}  Kg7 {[%clk 0:00:21]} 34. Ke3 {[%clk 0:01:07]}  Rb3+ {[%clk 0:00:20]} 35. Kd4 {[%clk 0:01:05]}  a3 {[%clk 0:00:15]} 36. Bc4 {[%clk 0:01:02]}  Rb2 {[%clk 0:00:15]} 37. Rxa3 {[%clk 0:01:00]}  Rxg2 {[%clk 0:00:15]} 38. Rb3 {[%clk 0:00:56]}  Bc8 {[%clk 0:00:15]} 39. Rb8 {[%clk 0:00:55]}  Bh3 {[%clk 0:00:15]} 40. Re8 {[%clk 0:00:49]}  e6 {[%clk 0:00:12]} 41. d6 {[%clk 0:00:45]}  Rxh2 {[%clk 0:00:10]} 42. e5 {[%clk 0:00:43]}  Rd2+ {[%clk 0:00:10]} 43. Kc3 {[%clk 0:00:38]}  Rd1 {[%clk 0:00:09]} 44. Bd3 {[%clk 0:00:37]}  Bf5 {[%clk 0:00:07]} 45. Bxa6 {[%clk 0:00:33]}  h5 {[%clk 0:00:06]} 46. Bb5 {[%clk 0:00:32]}  h4 {[%clk 0:00:03]} 47. d7 {[%clk 0:00:31]}  h3 {[%clk 0:00:03]} 48. d8=Q {[%clk 0:00:31]}  Rxd8 {[%clk 0:00:03]} 49. Rxd8 {[%clk 0:00:32]}  Kh6 {[%clk 0:00:03]} 50. f4 {[%clk 0:00:31]}  Kh5 {[%clk 0:00:03]} 51. Be2+ {[%clk 0:00:31]}  Kh4 {[%clk 0:00:04]} 52. Rd1 {[%clk 0:00:29]}  Kg3 {[%clk 0:00:04]} 53. Rf1 {[%clk 0:00:28]}  h2 {[%clk 0:00:04]} 54. Bf3 {[%clk 0:00:25]}  Bh3 {[%clk 0:00:03]} 55. Rh1 {[%clk 0:00:24]}  Bg2 {[%clk 0:00:03]} 56. Bxg2 {[%clk 0:00:20]}  Kxg2 {[%clk 0:00:03]} 57. Rxh2+ {[%clk 0:00:21]}  Kxh2 {[%clk 0:00:04]} 58. Kd3 {[%clk 0:00:20]}  Kg3 {[%clk 0:00:04]} 59. Ke3 {[%clk 0:00:21]}  Kg4 {[%clk 0:00:05]} 60. Ke4 {[%clk 0:00:22]}  g5 {[%clk 0:00:05]} 61. fxg5 {[%clk 0:00:17]}  Kxg5 {[%clk 0:00:06]} 62. Kd4 {[%clk 0:00:18]}  Kf4 {[%clk 0:00:06]} 0-1


[Site "https://www.chess.com"]

[Event "Titled Tuesday Blitz February 28 Early 2023"]
[White "Hambleton, Aman"]
[Black "Roebers, Eline"]
[WhiteFideId "2606577"]
[BlackFideId "1058401"]
[WhiteElo "2511"]
[BlackElo "2564"]
[Result "1-0"]
[Round "07"]
[TimeControl "180+2"]
[Date "2023.02.28"]
[WhiteClock "0:00:03"]
[BlackClock "0:00:05"]

1. d4 {[%clk 0:03:00]}  f5 {[%clk 0:02:59]} 2. c4 {[%clk 0:03:00]}  Nf6 {[%clk 0:02:59]} 3. h4 {[%clk 0:03:00]}  d6 {[%clk 0:02:57]} 4. Nf3 {[%clk 0:02:55]}  g6 {[%clk 0:02:56]} 5. Bg5 {[%clk 0:02:47]}  Bg7 {[%clk 0:02:54]} 6. Nc3 {[%clk 0:02:45]}  Nbd7 {[%clk 0:02:51]} 7. Qc2 {[%clk 0:02:43]}  c6 {[%clk 0:02:20]} 8. e3 {[%clk 0:02:09]}  e5 {[%clk 0:02:17]} 9. h5 {[%clk 0:01:55]}  e4 {[%clk 0:02:15]} 10. Nh4 {[%clk 0:01:25]}  Kf7 {[%clk 0:02:13]} 11. Be2 {[%clk 0:01:17]}  Qe8 {[%clk 0:01:29]} 12. O-O-O {[%clk 0:01:00]}  Rg8 {[%clk 0:01:28]} 13. hxg6+ {[%clk 0:00:40]}  hxg6 {[%clk 0:01:29]} 14. d5 {[%clk 0:00:41]}  c5 {[%clk 0:01:10]} 15. Nb5 {[%clk 0:00:40]}  Qe7 {[%clk 0:01:05]} 16. Nc7 {[%clk 0:00:32]}  Rb8 {[%clk 0:01:05]} 17. Nxf5 {[%clk 0:00:30]}  Qe5 {[%clk 0:00:45]} 18. Nxg7 {[%clk 0:00:04]}  Qxg5 {[%clk 0:00:26]} 19. Nge6 {[%clk 0:00:05]}  Qf5 {[%clk 0:00:26]} 20. g4 {[%clk 0:00:04]}  Nxg4 {[%clk 0:00:15]} 21. Rh7+ {[%clk 0:00:03]}  Kf6 {[%clk 0:00:16]} 22. Bxg4 {[%clk 0:00:02]}  Qxg4 {[%clk 0:00:17]} 23. Rdh1 {[%clk 0:00:01]}  Ne5 {[%clk 0:00:15]} 24. Qc3 {[%clk 0:00:02]}  Qe2 {[%clk 0:00:14]} 25. Nb5 {[%clk 0:00:02]}  Qxc4 {[%clk 0:00:12]} 26. Nxd6 {[%clk 0:00:02]}  Qxc3+ {[%clk 0:00:12]} 27. bxc3 {[%clk 0:00:03]}  Nd3+ {[%clk 0:00:12]} 28. Kd2 {[%clk 0:00:03]}  Bxe6 {[%clk 0:00:13]} 29. Nxe4+ {[%clk 0:00:02]}  Ke5 {[%clk 0:00:10]} 30. dxe6 {[%clk 0:00:03]}  Kxe4 {[%clk 0:00:09]} 31. R1h4+ {[%clk 0:00:02]}  Ke5 {[%clk 0:00:08]} 32. Kxd3 {[%clk 0:00:03]}  Kxe6 {[%clk 0:00:09]} 33. Re4+ {[%clk 0:00:02]}  Kf6 {[%clk 0:00:06]} 34. Ree7 {[%clk 0:00:03]}  b5 {[%clk 0:00:04]} 35. f4 {[%clk 0:00:03]}  Rbd8+ {[%clk 0:00:05]} 36. Ke4 {[%clk 0:00:02]}  Rge8 {[%clk 0:00:05]} 37. Rf7# {[%clk 0:00:03]} 1-0


[Site "https://www.chess.com"]

[Event "Titled Tuesday Blitz February 28 Early 2023"]
[White "Degenbaev, Aziz"]
[Black "Mirzoev, Azer"]
[WhiteFideId "13802640"]
[BlackFideId "13400304"]
[WhiteElo "2152"]
[BlackElo "2525"]
[Result "0-1"]
[Round "07"]
[TimeControl "180+2"]
[Date "2023.02.28"]
[WhiteClock "0:00:05"]
[BlackClock "0:00:18"]

1. e4 {[%clk 0:03:00]}  c5 {[%clk 0:02:59]} 2. Nf3 {[%clk 0:03:00]}  e6 {[%clk 0:02:59]} 3. d4 {[%clk 0:02:56]}  cxd4 {[%clk 0:03:00]} 4. Nxd4 {[%clk 0:02:57]}  a6 {[%clk 0:03:00]} 5. Bd3 {[%clk 0:02:54]}  Nc6 {[%clk 0:02:59]} 6. Nxc6 {[%clk 0:02:53]}  bxc6 {[%clk 0:03:00]} 7. O-O {[%clk 0:02:51]}  d5 {[%clk 0:03:00]} 8. exd5 {[%clk 0:02:47]}  cxd5 {[%clk 0:03:00]} 9. c4 {[%clk 0:02:40]}  Bb7 {[%clk 0:02:56]} 10. Nc3 {[%clk 0:02:40]}  Nf6 {[%clk 0:02:55]} 11. Qa4+ {[%clk 0:02:36]}  Qd7 {[%clk 0:02:55]} 12. Qxd7+ {[%clk 0:02:32]}  Kxd7 {[%clk 0:02:56]} 13. Rd1 {[%clk 0:02:31]}  Ke8 {[%clk 0:02:42]} 14. Bg5 {[%clk 0:02:29]}  Be7 {[%clk 0:02:39]} 15. Rac1 {[%clk 0:01:51]}  dxc4 {[%clk 0:02:37]} 16. Bxc4 {[%clk 0:01:49]}  h6 {[%clk 0:02:36]} 17. Bh4 {[%clk 0:01:45]}  Ne4 {[%clk 0:02:27]} 18. Bxe7 {[%clk 0:01:18]}  Kxe7 {[%clk 0:02:28]} 19. Na4 {[%clk 0:01:18]}  Rhd8 {[%clk 0:02:21]} 20. Nb6 {[%clk 0:01:16]}  Rab8 {[%clk 0:02:13]} 21. Bb3 {[%clk 0:01:05]}  Rxd1+ {[%clk 0:02:12]} 22. Bxd1 {[%clk 0:01:04]}  Kd8 {[%clk 0:02:04]} 23. Ba4 {[%clk 0:00:57]}  f5 {[%clk 0:01:53]} 24. f3 {[%clk 0:00:42]}  Nf6 {[%clk 0:01:49]} 25. Nc4 {[%clk 0:00:23]}  Bd5 {[%clk 0:01:45]} 26. Bb3 {[%clk 0:00:23]}  Rc8 {[%clk 0:01:42]} 27. Rd1 {[%clk 0:00:23]}  Ke7 {[%clk 0:01:33]} 28. Nb6 {[%clk 0:00:22]}  Rc5 {[%clk 0:01:32]} 29. Nxd5+ {[%clk 0:00:21]}  Nxd5 {[%clk 0:01:32]} 30. Bxd5 {[%clk 0:00:19]}  exd5 {[%clk 0:01:31]} 31. Rd2 {[%clk 0:00:16]}  Kd6 {[%clk 0:01:31]} 32. Kf2 {[%clk 0:00:16]}  g5 {[%clk 0:01:31]} 33. g3 {[%clk 0:00:12]}  f4 {[%clk 0:01:29]} 34. b3 {[%clk 0:00:10]}  Rc1 {[%clk 0:01:22]} 35. h4 {[%clk 0:00:06]}  Ke5 {[%clk 0:01:16]} 36. hxg5 {[%clk 0:00:06]}  hxg5 {[%clk 0:01:17]} 37. Re2+ {[%clk 0:00:06]}  Kd4 {[%clk 0:01:17]} 38. Rd2+ {[%clk 0:00:06]}  Kc5 {[%clk 0:01:17]} 39. gxf4 {[%clk 0:00:05]}  gxf4 {[%clk 0:01:17]} 40. Kg2 {[%clk 0:00:05]}  a5 {[%clk 0:01:14]} 41. Kh3 {[%clk 0:00:05]}  Rg1 {[%clk 0:01:13]} 42. Rc2+ {[%clk 0:00:03]}  Kd4 {[%clk 0:01:12]} 43. Rd2+ {[%clk 0:00:04]}  Ke5 {[%clk 0:01:09]} 44. Re2+ {[%clk 0:00:04]}  Kd4 {[%clk 0:00:50]} 45. Rd2+ {[%clk 0:00:04]}  Ke3 {[%clk 0:00:50]} 46. Rxd5 {[%clk 0:00:04]}  Kxf3 {[%clk 0:00:49]} 47. Rd3+ {[%clk 0:00:04]}  Ke2 {[%clk 0:00:36]} 48. Rd7 {[%clk 0:00:02]}  f3 {[%clk 0:00:25]} 49. Re7+ {[%clk 0:00:02]}  Kf2 {[%clk 0:00:25]} 50. Rc7 {[%clk 0:00:03]}  Rg8 {[%clk 0:00:18]} 51. Rc2+ {[%clk 0:00:02]}  Ke3 {[%clk 0:00:18]} 52. Rc3+ {[%clk 0:00:03]}  Ke2 {[%clk 0:00:18]} 53. Rc2+ {[%clk 0:00:03]}  Kd3 {[%clk 0:00:18]} 54. Rf2 {[%clk 0:00:04]}  Ke3 {[%clk 0:00:18]} 55. Rf1 {[%clk 0:00:05]}  f2 {[%clk 0:00:18]} 0-1


[Site "https://www.chess.com"]

[Event "Titled Tuesday Blitz February 28 Early 2023"]
[White "Aydincelebi, Kagan"]
[Black "Eswaran, Ashritha"]
[WhiteFideId "6361102"]
[BlackFideId "2080788"]
[WhiteElo "2180"]
[BlackElo "2540"]
[Result "0-1"]
[Round "07"]
[TimeControl "180+2"]
[Date "2023.02.28"]
[WhiteClock "0:00:33"]
[BlackClock "0:01:55"]

1. e4 {[%clk 0:02:56]}  c5 {[%clk 0:02:59]} 2. Nf3 {[%clk 0:02:56]}  Nc6 {[%clk 0:03:00]} 3. Bb5 {[%clk 0:02:56]}  g6 {[%clk 0:02:59]} 4. Bxc6 {[%clk 0:02:54]}  dxc6 {[%clk 0:02:59]} 5. Nc3 {[%clk 0:02:53]}  Bg7 {[%clk 0:02:59]} 6. d3 {[%clk 0:02:52]}  Nf6 {[%clk 0:02:59]} 7. Be3 {[%clk 0:02:51]}  b6 {[%clk 0:02:58]} 8. h3 {[%clk 0:02:50]}  O-O {[%clk 0:02:59]} 9. O-O {[%clk 0:02:48]}  Ne8 {[%clk 0:02:59]} 10. Nd2 {[%clk 0:02:46]}  Nc7 {[%clk 0:02:59]} 11. f4 {[%clk 0:02:47]}  f5 {[%clk 0:02:58]} 12. e5 {[%clk 0:02:47]}  Ne6 {[%clk 0:02:58]} 13. a4 {[%clk 0:02:43]}  a5 {[%clk 0:02:58]} 14. Nc4 {[%clk 0:02:43]}  Qc7 {[%clk 0:02:58]} 15. Qd2 {[%clk 0:02:41]}  Rd8 {[%clk 0:02:57]} 16. Qf2 {[%clk 0:02:41]}  Ba6 {[%clk 0:02:57]} 17. b3 {[%clk 0:02:40]}  Rd7 {[%clk 0:02:49]} 18. Ne2 {[%clk 0:02:40]}  Rad8 {[%clk 0:02:48]} 19. Kh2 {[%clk 0:02:37]}  Nd4 {[%clk 0:02:43]} 20. Nxd4 {[%clk 0:02:37]}  cxd4 {[%clk 0:02:43]} 21. Bd2 {[%clk 0:02:38]}  c5 {[%clk 0:02:40]} 22. g4 {[%clk 0:02:35]}  e6 {[%clk 0:02:38]} 23. g5 {[%clk 0:02:31]}  Bb7 {[%clk 0:02:38]} 24. h4 {[%clk 0:02:31]}  Qc6 {[%clk 0:02:36]} 25. Qg3 {[%clk 0:02:23]}  Kf7 {[%clk 0:02:36]} 26. Kg1 {[%clk 0:02:21]}  Rh8 {[%clk 0:02:36]} 27. Kf2 {[%clk 0:02:22]}  h6 {[%clk 0:02:35]} 28. Rg1 {[%clk 0:02:11]}  hxg5 {[%clk 0:02:12]} 29. Qxg5 {[%clk 0:02:12]}  Qf3+ {[%clk 0:02:11]} 30. Ke1 {[%clk 0:02:09]}  Rh6 {[%clk 0:02:12]} 31. Nxb6 {[%clk 0:02:04]}  Re7 {[%clk 0:02:09]} 32. Nc4 {[%clk 0:02:00]}  Bd5 {[%clk 0:02:01]} 33. Nd6+ {[%clk 0:01:21]}  Kf8 {[%clk 0:02:01]} 34. Rf1 {[%clk 0:01:14]}  Qh3 {[%clk 0:01:59]} 35. Ke2 {[%clk 0:00:58]}  Rxh4 {[%clk 0:01:57]} 36. Rg1 {[%clk 0:00:33]}  Qf3+ {[%clk 0:01:54]} 37. Ke1 {[%clk 0:00:33]}  Rh2 {[%clk 0:01:55]} 0-1


[Site "https://www.chess.com"]

[Event "Titled Tuesday Blitz February 28 Early 2023"]
[White "Kuzmin, Roman"]
[Black "Csonka, Balazs"]
[WhiteFideId "44134932"]
[BlackFideId "742910"]
[WhiteElo "2146"]
[BlackElo "2404"]
[Result "0-1"]
[Round "07"]
[TimeControl "180+2"]
[Date "2023.02.28"]
[WhiteClock "0:00:01"]
[BlackClock "0:00:03"]

1. e4 {[%clk 0:03:00]}  c5 {[%clk 0:02:59]} 2. Nf3 {[%clk 0:03:01]}  e6 {[%clk 0:02:55]} 3. d4 {[%clk 0:03:01]}  cxd4 {[%clk 0:02:56]} 4. Nxd4 {[%clk 0:03:02]}  Nf6 {[%clk 0:02:55]} 5. Nc3 {[%clk 0:03:02]}  Nc6 {[%clk 0:02:55]} 6. Ndb5 {[%clk 0:03:02]}  d6 {[%clk 0:02:50]} 7. Bf4 {[%clk 0:03:02]}  e5 {[%clk 0:02:50]} 8. Bg5 {[%clk 0:03:01]}  a6 {[%clk 0:02:50]} 9. Na3 {[%clk 0:03:02]}  b5 {[%clk 0:02:49]} 10. Nd5 {[%clk 0:03:01]}  Be7 {[%clk 0:02:49]} 11. Bxf6 {[%clk 0:03:02]}  Bxf6 {[%clk 0:02:50]} 12. c4 {[%clk 0:03:03]}  b4 {[%clk 0:02:46]} 13. Nc2 {[%clk 0:03:02]}  a5 {[%clk 0:02:45]} 14. g3 {[%clk 0:03:02]}  O-O {[%clk 0:02:43]} 15. Bg2 {[%clk 0:03:02]}  Be6 {[%clk 0:02:29]} 16. O-O {[%clk 0:02:57]}  Rc8 {[%clk 0:02:19]} 17. Nde3 {[%clk 0:02:51]}  Qb6 {[%clk 0:02:03]} 18. b3 {[%clk 0:02:43]}  Rfd8 {[%clk 0:01:50]} 19. h4 {[%clk 0:02:38]}  Nd4 {[%clk 0:01:36]} 20. Nxd4 {[%clk 0:02:32]}  exd4 {[%clk 0:01:37]} 21. Ng4 {[%clk 0:02:32]}  Bxg4 {[%clk 0:01:33]} 22. Qxg4 {[%clk 0:02:33]}  a4 {[%clk 0:01:30]} 23. Kh2 {[%clk 0:02:30]}  Rc5 {[%clk 0:01:21]} 24. f4 {[%clk 0:02:24]}  Ra5 {[%clk 0:01:14]} 25. Rae1 {[%clk 0:02:17]}  axb3 {[%clk 0:01:09]} 26. axb3 {[%clk 0:02:18]}  Rf8 {[%clk 0:01:05]} 27. Qd7 {[%clk 0:02:08]}  Qd8 {[%clk 0:00:48]} 28. Qg4 {[%clk 0:02:06]}  Qc7 {[%clk 0:00:38]} 29. h5 {[%clk 0:02:05]}  h6 {[%clk 0:00:37]} 30. e5 {[%clk 0:01:44]}  dxe5 {[%clk 0:00:37]} 31. fxe5 {[%clk 0:01:45]}  Rxe5 {[%clk 0:00:30]} 32. Be4 {[%clk 0:01:43]}  Rg5 {[%clk 0:00:26]} 33. Qf3 {[%clk 0:01:43]}  Be5 {[%clk 0:00:25]} 34. Rg1 {[%clk 0:01:42]}  Kh8 {[%clk 0:00:15]} 35. Bd3 {[%clk 0:01:41]}  Qd6 {[%clk 0:00:11]} 36. Re4 {[%clk 0:01:14]}  Qf6 {[%clk 0:00:08]} 37. Qe2 {[%clk 0:01:09]}  Ra8 {[%clk 0:00:06]} 38. Rg2 {[%clk 0:00:48]}  Ra3 {[%clk 0:00:04]} 39. Rf4 {[%clk 0:00:45]}  Qe7 {[%clk 0:00:03]} 40. Qe4 {[%clk 0:00:44]}  g6 {[%clk 0:00:03]} 41. hxg6 {[%clk 0:00:43]}  fxg6 {[%clk 0:00:04]} 42. Rh4 {[%clk 0:00:42]}  Kg7 {[%clk 0:00:03]} 43. c5 {[%clk 0:00:37]}  Rxb3 {[%clk 0:00:03]} 44. c6 {[%clk 0:00:24]}  Rxd3 {[%clk 0:00:03]} 45. Qxd3 {[%clk 0:00:24]}  Rxg3 {[%clk 0:00:02]} 46. Rxg3 {[%clk 0:00:11]}  Qxh4+ {[%clk 0:00:03]} 47. Kg2 {[%clk 0:00:12]}  Bxg3 {[%clk 0:00:03]} 48. Qxg3 {[%clk 0:00:12]}  Qe4+ {[%clk 0:00:04]} 49. Qf3 {[%clk 0:00:12]}  Qe5 {[%clk 0:00:03]} 50. Qg4 {[%clk 0:00:07]}  Qd5+ {[%clk 0:00:01]} 51. Qf3 {[%clk 0:00:08]}  Qe5 {[%clk 0:00:01]} 52. Qh3 {[%clk 0:00:08]}  Qd5+ {[%clk 0:00:01]} 53. Qf3 {[%clk 0:00:09]}  Qd6 {[%clk 0:00:02]} 54. Qe4 {[%clk 0:00:06]}  d3 {[%clk 0:00:02]} 55. Qc4 {[%clk 0:00:01]}  d2 {[%clk 0:00:02]} 56. c7 {[%clk 0:00:01]}  d1=Q {[%clk 0:00:02]} 57. c8=Q {[%clk 0:00:02]}  Q1d2+ {[%clk 0:00:03]} 58. Kf3 {[%clk 0:00:02]}  Qd1+ {[%clk 0:00:03]} 59. Qe2 {[%clk 0:00:02]}  Qf6+ {[%clk 0:00:02]} 60. Ke3 {[%clk 0:00:01]}  Qe5+ {[%clk 0:00:02]} 61. Kf3 {[%clk 0:00:01]}  Qdxe2# {[%clk 0:00:03]} 0-1


[Site "https://www.chess.com"]